bitfinex/quotes_BTCUSD_20241110
["timestamp","ask_amount","ask_price","bid_price","bid_amount"]
[1731235571490,0.12594221,79491.0,79484.0,0.005]
[1731235571739,0.12594221,79491.0,79482.0,0.00168]
[1731235571956,0.12594221,79491.0,79486.0,0.1]
[1731235572144,1.5,79490.0,79486.0,0.1]
[1731235572351,0.19032528,79489.0,79487.0,0.00585044]
[1731235572598,0.002,79483.0,79482.0,0.00168]
[1731235572808,0.16554676,79483.0,79482.0,0.00168]
[1731235573013,1.62794221,79483.0,79482.0,0.00168]
[1731235574458,1.6655292,79483.0,79482.0,0.00168]
[1731235575132,1.62794221,79483.0,79482.0,0.00168]
[1731235575354,1.62594221,79483.0,79482.0,0.00168]
[1731235577978,1.69331411,79483.0,79482.0,0.00168]
[1731235578217,0.002,79475.0,79473.0,0.0151]
[1731235578410,0.002,79478.0,79475.0,0.1]
[1731235578826,1.5,79477.0,79475.0,0.1]
[1731235579242,0.12594221,79476.0,79475.0,0.1]
[1731235579437,0.12594221,79476.0,79473.0,0.0151]
[1731235579844,1.5,79475.0,79473.0,0.0151]
[1731235580050,1.5,79475.0,79474.0,0.1]
[1731235580334,0.1,79483.0,79473.0,0.0151]
[1731235580335,0.1,79483.0,79476.0,0.00916856]
[1731235580638,0.1,79483.0,79478.0,0.00416856]
[1731235580837,1.6,79483.0,79478.0,0.00416856]
[1731235581915,1.6,79483.0,79476.0,0.005]
[1731235582248,0.12594221,79482.0,79479.0,0.1]
[1731235583015,0.12594221,79482.0,79473.0,0.01678]
[1731235583236,0.12594221,79482.0,79475.0,0.1]
[1731235585079,0.12594221,79482.0,79476.0,0.005]
[1731235585289,1.6,79483.0,79478.0,0.00416856]
[1731235585502,1.6,79483.0,79482.0,0.00916856]
[1731235585737,0.1,79483.0,79482.0,0.00916856]
[1731235588161,0.1,79483.0,79482.0,0.00416856]
[1731235589813,1.6,79483.0,79482.0,0.00416856]
[1731235593907,1.6,79483.0,79482.0,0.00584856]
[1731235598728,1.6,79483.0,79482.0,0.00168]
[1731235598919,1.72594221,79483.0,79482.0,0.00168]
[1731235601319,1.76946044,79483.0,79482.0,0.00168]
[1731235601520,1.72794221,79483.0,79482.0,0.00168]
[1731235602293,1.72594221,79483.0,79482.0,0.00168]
[1731235602780,0.002,79478.0,79473.0,0.11678]
[1731235602981,0.12594221,79477.0,79473.0,0.11678]
[1731235603468,1.5,79476.0,79473.0,0.11678]
[1731235603661,0.12594221,79475.0,79473.0,0.11678]
[1731235604065,0.12594221,79475.0,79473.0,0.01678]
[1731235604261,1.5,79474.0,79473.0,0.01678]
[1731235604564,1.5,79474.0,79473.0,0.02594856]
[1731235604775,0.1,79483.0,79479.0,0.005]
[1731235604973,0.1,79483.0,79481.0,0.00916856]
[1731235606174,0.10084,79483.0,79481.0,0.00916856]
[1731235608827,0.10084,79483.0,79482.0,0.005]
[1731235609354,1.60084,79483.0,79482.0,0.005]
[1731235610983,1.60084,79483.0,79482.0,0.00916856]
[1731235611768,1.60084,79483.0,79482.0,0.08756856]
[1731235612767,0.10084,79483.0,79482.0,0.08756856]
[1731235615824,0.10084,79483.0,79482.0,0.19756856]
[1731235616651,0.10084,79483.0,79482.0,0.18756856]
[1731235617063,0.10084,79483.0,79482.0,0.08756856]
[1731235618870,1.60084,79483.0,79482.0,0.08756856]
[1731235619087,1.60084,79483.0,79482.0,0.00916856]
[1731235620115,0.10084,79483.0,79482.0,0.00916856]
[1731235624863,1.60084,79483.0,79482.0,0.00916856]
[1731235625692,0.10084,79483.0,79482.0,0.00916856]
[1731235628005,0.10084,79483.0,79482.0,0.28686307]
[1731235628198,0.10084,79483.0,79482.0,0.29721077]
[1731235629324,0.10084,79483.0,79482.0,0.37511077]
[1731235629543,0.10084,79483.0,79482.0,0.32511077]
[1731235630840,0.02274,79483.0,79482.0,0.32511077]
[1731235632354,0.00084,79486.0,79485.0,0.015]
[1731235632586,0.00084,79486.0,79485.0,0.24094221]
[1731235632789,0.00084,79486.0,79485.0,0.24294221]
[1731235632997,0.00084,79486.0,79485.0,0.62037221]
[1731235633180,0.00084,79495.0,79494.0,0.015]
[1731235633434,0.00084,79495.0,79494.0,0.61833221]
[1731235633918,0.00084,79495.0,79494.0,0.74423221]
[1731235634568,1.53,79528.0,79522.0,0.005]
[1731235634785,0.03,79528.0,79513.0,0.005]
[1731235634993,0.03,79528.0,79514.0,0.37729]
[1731235635257,0.03,79528.0,79515.0,0.28896328]
[1731235635479,0.03,79528.0,79515.0,0.1]
[1731235635716,0.03,79528.0,79517.0,0.1]
[1731235635923,0.03,79528.0,79518.0,0.00751479]
[1731235636147,0.03,79528.0,79518.0,0.005]
[1731235638091,0.03,79528.0,79519.0,0.0075148]
[1731235638313,0.03,79528.0,79527.0,0.005]
[1731235638534,0.03,79528.0,79527.0,0.0856]
[1731235638979,0.03,79528.0,79527.0,0.56283]
[1731235639191,0.03,79528.0,79527.0,0.68877221]
[1731235640666,0.03084,79528.0,79527.0,0.68877221]
[1731235642079,0.03084,79528.0,79527.0,0.68377221]
[1731235642280,0.03084,79528.0,79527.0,0.68877221]
[1731235644341,0.03084,79528.0,79527.0,0.47723]
[1731235645433,0.03084,79528.0,79527.0,0.48223]
[1731235646096,0.03084,79528.0,79527.0,0.60817221]
[1731235646308,0.03084,79528.0,79527.0,0.61317221]
[1731235647084,0.03084,79528.0,79527.0,0.47723]
[1731235647903,1.53084,79528.0,79527.0,0.47723]
[1731235651454,0.03084,79528.0,79527.0,0.47723]
[1731235656036,0.03034,79528.0,79527.0,0.47723]
[1731235668884,0.03034,79528.0,79527.0,0.58663957]
[1731235669054,0.03034,79528.0,79527.0,0.55323]
[1731235669695,0.047512,79563.0,79527.0,0.55323]
[1731235669696,0.000712,79563.0,79549.0,0.005]
[1731235669898,0.18896328,79562.0,79549.0,0.74137221]
[1731235670241,0.18896328,79562.0,79549.0,0.61043]
[1731235670377,0.000712,79563.0,79549.0,0.56813]
[1731235671494,0.000712,79563.0,79549.0,0.56313]
[1731235671697,0.000712,79563.0,79549.0,0.55813]
[1731235672014,0.000712,79563.0,79549.0,0.47713]
[1731235672424,0.000712,79563.0,79549.0,0.48213]
[1731235674940,0.000712,79563.0,79549.0,0.52219307]
[1731235676232,0.000712,79563.0,79549.0,0.65813528]
[1731235676436,0.000712,79563.0,79549.0,0.61807221]
[1731235679265,0.000712,79563.0,79549.0,0.61307221]
[1731235679528,0.000712,79563.0,79549.0,0.49213]
[1731235680274,0.000712,79563.0,79549.0,0.48713]
[1731235680472,0.000712,79563.0,79549.0,0.47713]
[1731235681448,0.18896328,79569.0,79549.0,0.47713]
[1731235681449,0.18896328,79569.0,79550.0,0.1]
[1731235681651,0.12594221,79569.0,79551.0,0.00251379]
[1731235681852,0.12594221,79569.0,79552.0,0.1]
[1731235682004,0.12594221,79569.0,79553.0,0.00251379]
[1731235682409,1.5,79567.0,79553.0,0.00251379]
[1731235682906,1.5,79567.0,79552.0,0.1]
[1731235682907,1.5,79567.0,79552.0,0.28896328]
[1731235683111,0.12594221,79566.0,79552.0,0.28896328]
[1731235683633,0.12594221,79566.0,79549.0,0.37713]
[1731235683634,0.002,79565.0,79549.0,0.37713]
[1731235683809,0.12594221,79564.0,79552.0,0.0151]
[1731235684014,0.0459,79563.0,79552.0,0.0151]
[1731235684323,1.5,79555.0,79552.0,0.0151]
[1731235684453,0.12594221,79554.0,79552.0,0.0151]
[1731235687203,0.002,79553.0,79552.0,0.0151]
[1731235687405,0.12594221,79553.0,79552.0,0.0151]
[1731235687605,0.20124221,79553.0,79549.0,0.36105138]
[1731235687807,0.12594221,79552.0,79549.0,0.36105138]
[1731235688031,1.5,79551.0,79549.0,0.31075367]
[1731235688363,1.5,79551.0,79527.0,0.001678]
[1731235688364,0.0457,79542.0,79527.0,0.001678]
[1731235688524,0.12594221,79541.0,79527.0,0.001678]
[1731235689556,0.12594221,79541.0,79532.0,0.18896328]
[1731235689820,1.5,79540.0,79527.0,0.001678]
[1731235690020,0.12594221,79539.0,79527.0,0.001678]
[1731235690616,1.5,79538.0,79527.0,0.001678]
[1731235690815,0.002,79534.0,79527.0,0.001678]
[1731235691012,1.62594221,79538.0,79527.0,0.001678]
[1731235691013,0.12594221,79533.0,79527.0,0.001678]
[1731235691576,0.12594221,79533.0,79529.0,0.18896328]
[1731235691777,0.12594221,79533.0,79530.0,0.1]
[1731235692742,0.12594221,79533.0,79527.0,0.001678]
[1731235693270,0.12594221,79528.0,79527.0,0.001678]
[1731235693693,0.12794221,79528.0,79527.0,0.001678]
[1731235693894,1.62794221,79528.0,79527.0,0.001678]
[1731235694269,0.002,79525.0,79500.0,0.18896328]
[1731235694476,0.12594221,79524.0,79519.0,0.18896328]
[1731235694721,0.12594221,79524.0,79500.0,0.18896328]
[1731235695341,1.5,79523.0,79500.0,0.18896328]
[1731235695562,0.12594221,79522.0,79517.0,0.1]
[1731235696344,1.5,79521.0,79517.0,0.1]
[1731235696568,0.12594221,79520.0,79517.0,0.1]
[1731235696745,0.12594221,79520.0,79509.0,0.1]
[1731235696996,0.12594221,79520.0,79517.0,0.1]
[1731235697199,1.5,79519.0,79517.0,0.1]
[1731235697409,0.12594221,79518.0,79517.0,0.1]
[1731235698032,0.12594221,79518.0,79517.0,0.00168]
[1731235699623,0.12594221,79518.0,79510.0,0.18896328]
[1731235699828,0.12594221,79518.0,79511.0,0.1]
[1731235701748,0.0753,79532.0,79511.0,0.1]
[1731235702132,0.18896328,79523.0,79507.0,0.1]
[1731235702313,0.12594221,79522.0,79511.0,0.18896328]
[1731235702520,0.12594221,79522.0,79512.0,0.1]
[1731235703086,1.5,79521.0,79512.0,0.1]
[1731235706864,1.5,79521.0,79506.0,0.0831]
[1731235707039,1.5,79521.0,79509.0,0.1]
[1731235709950,1.5,79521.0,79509.0,0.10168]
[1731235710203,1.59358897,79521.0,79509.0,0.10168]
[1731235710591,1.5,79521.0,79509.0,0.10168]
[1731235710956,0.31490549,79520.0,79509.0,0.00168]
[1731235711158,0.12594221,79520.0,79509.0,0.00168]
[1731235711596,1.5,79519.0,79509.0,0.00168]
[1731235711808,0.12594221,79518.0,79509.0,0.00168]
[1731235712434,1.5,79517.0,79511.0,0.1]
[1731235712586,1.62594221,79517.0,79511.0,0.1]
[1731235713065,1.5,79517.0,79511.0,0.1]
[1731235713274,0.03,79525.0,79509.0,0.00168]
[1731235713475,0.31490549,79524.0,79509.0,0.00168]
[1731235713694,0.12594221,79524.0,79511.0,0.1]
[1731235714067,1.53,79525.0,79511.0,0.1]
[1731235714743,1.5,79525.0,79512.0,0.00251513]
[1731235714926,1.5,79525.0,79512.0,0.0831]
[1731235715129,0.18896328,79536.0,79513.0,0.00251503]
[1731235715329,0.12594221,79535.0,79513.0,0.00251503]
[1731235715503,1.5,79534.0,79512.0,0.0881]
[1731235715722,1.5,79534.0,79519.0,0.1]
[1731235715901,0.18896328,79544.0,79519.0,0.105]
[1731235716110,0.18896328,79536.0,79520.0,0.00251465]
[1731235716286,0.12594221,79543.0,79520.0,0.00251465]
[1731235716287,0.05,79521.0,79520.0,0.00251465]
[1731235716498,0.05,79521.0,79519.0,0.105]
[1731235716703,0.05,79521.0,79519.0,0.005]
[1731235719722,0.05,79521.0,79514.0,0.065]
[1731235719930,0.05,79521.0,79515.0,0.12594221]
[1731235720228,0.05,79521.0,79511.0,0.005]
[1731235720229,0.18896328,79520.0,79511.0,0.005]
[1731235720439,0.05,79521.0,79502.0,0.0831]
[1731235720645,0.005,79520.0,79511.0,0.18896328]
[1731235721941,0.005,79520.0,79512.0,0.1]
[1731235722142,0.005,79520.0,79502.0,0.1831]
[1731235722761,0.31990549,79519.0,79502.0,0.1831]
[1731235722964,0.005,79512.0,79501.0,0.18896328]
[1731235723185,1.5,79511.0,79501.0,0.18896328]
[1731235723345,0.01,79510.0,79502.0,0.18896328]
[1731235723548,0.13594221,79510.0,79502.0,0.18896328]
[1731235723992,1.63594221,79510.0,79502.0,0.18896328]
[1731235724548,1.63594221,79510.0,79503.0,0.1]
[1731235725227,1.505,79510.0,79503.0,0.1]
[1731235725640,1.5,79510.0,79503.0,0.1]
[1731235726319,0.005,79512.0,79503.0,0.1]
[1731235726674,0.005,79512.0,79494.0,0.1]
[1731235726794,1.5,79511.0,79494.0,0.1]
[1731235728141,0.005,79512.0,79494.0,0.1]
[1731235728541,1.5,79511.0,79494.0,0.1]
[1731235729146,0.13594221,79510.0,79494.0,0.1]
[1731235730448,0.13594221,79510.0,79501.0,0.038]
[1731235731884,0.13094221,79510.0,79501.0,0.038]
[1731235732225,0.005,79510.0,79501.0,0.038]
[1731235734818,1.505,79512.0,79501.0,0.038]
[1731235735130,0.12594221,79511.0,79501.0,0.038]
[1731235735522,0.00084,79514.0,79502.0,0.19147889]
[1731235735706,0.00084,79514.0,79511.0,0.1]
[1731235736720,0.00084,79514.0,79503.0,0.1]
[1731235737317,0.00084,79514.0,79504.0,0.00251539]
[1731235737736,0.00084,79514.0,79512.0,0.18896328]
[1731235737896,0.00084,79514.0,79513.0,0.1771]
[1731235738900,0.00084,79514.0,79513.0,0.0771]
[1731235739373,0.10084,79514.0,79513.0,0.34310528]
[1731235739560,0.10084,79514.0,79513.0,0.30304221]
[1731235739733,0.0874425,79514.0,79513.0,0.30304221]
[1731235740159,0.1374425,79514.0,79513.0,0.30304221]
[1731235740570,0.1374425,79514.0,79513.0,0.1771]
[1731235740771,0.1374425,79514.0,79513.0,0.0771]
[1731235740973,0.1374425,79514.0,79511.0,0.038]
[1731235744258,1.5,79513.0,79511.0,0.038]
[1731235744460,0.13594221,79512.0,79511.0,0.038]
[1731235744632,0.13094221,79512.0,79511.0,0.038]
[1731235745156,1.63094221,79512.0,79511.0,0.038]
[1731235745470,0.1374425,79514.0,79511.0,0.038]
[1731235746016,0.01,79512.0,79511.0,0.038]
[1731235746213,0.13594221,79512.0,79511.0,0.038]
[1731235749423,0.13794221,79512.0,79511.0,0.038]
[1731235749636,0.13594221,79512.0,79511.0,0.038]
[1731235751596,0.09794221,79512.0,79509.0,0.00168]
[1731235753448,1.5,79511.0,79509.0,0.00168]
[1731235753759,0.12594221,79510.0,79509.0,0.00168]
[1731235756951,1.62594221,79510.0,79509.0,0.00168]
[1731235759138,1.72594221,79510.0,79509.0,0.00168]
[1731235759914,1.82790578,79510.0,79509.0,0.00168]
[1731235762635,1.82990578,79510.0,79509.0,0.00168]
[1731235762835,1.81790578,79510.0,79509.0,0.00168]
[1731235764231,1.71594221,79510.0,79509.0,0.00168]
[1731235764413,0.31790578,79510.0,79509.0,0.00168]
[1731235764793,1.81790578,79510.0,79509.0,0.00168]
[1731235767257,0.005,79501.0,79500.0,0.001682]
[1731235767489,0.22790578,79501.0,79500.0,0.001682]
[1731235767979,1.72790578,79501.0,79500.0,0.001682]
[1731235772827,1.72790578,79501.0,79487.0,0.001682]
[1731235773051,0.10196357,79495.0,79487.0,0.001682]
[1731235773255,0.12594221,79494.0,79487.0,0.001682]
[1731235773683,0.12594221,79494.0,79479.0,0.00168]
[1731235775602,0.10196357,79489.0,79479.0,0.00168]
[1731235776252,0.12594221,79488.0,79479.0,0.00168]
[1731235776478,0.10196357,79483.0,79479.0,0.00168]
[1731235776846,0.12594221,79482.0,79479.0,0.00168]
[1731235777045,0.12594221,79481.0,79479.0,0.00168]
[1731235777302,1.5,79480.0,79479.0,0.00168]
[1731235777484,1.62594221,79480.0,79479.0,0.00168]
[1731235778443,1.62594221,79480.0,79471.0,0.1772778]
[1731235778661,0.12594221,79479.0,79469.0,0.001422]
[1731235779290,0.10196357,79477.0,79469.0,0.001422]
[1731235779492,0.12594221,79476.0,79469.0,0.001422]
[1731235779730,0.10196357,79471.0,79469.0,0.001422]
[1731235780127,0.22790578,79471.0,79469.0,0.001422]
[1731235782015,1.5,79470.0,79469.0,0.001422]
[1731235782190,1.62594221,79470.0,79469.0,0.001422]
[1731235787279,1.62584411,79470.0,79469.0,0.001422]
[1731235788263,0.03,79478.0,79469.0,0.001422]
[1731235788671,0.18896328,79483.0,79469.0,0.001422]
[1731235788672,0.18896328,79483.0,79470.0,0.0759]
[1731235788874,0.31490549,79483.0,79470.0,0.0759]
[1731235789071,0.18896328,79475.0,79469.0,0.001422]
[1731235789337,0.12594221,79482.0,79469.0,0.001422]
[1731235789338,0.10196357,79484.0,79471.0,0.1]
[1731235789527,0.18896328,79483.0,79471.0,0.1]
[1731235790187,0.10196357,79490.0,79489.0,0.1]
[1731235790366,0.22790578,79490.0,79489.0,0.1]
[1731235790564,0.22790578,79490.0,79480.0,0.0759]
[1731235790804,0.12594221,79489.0,79483.0,0.1]
[1731235791306,1.5,79491.0,79480.0,0.0759]
[1731235791465,1.5,79491.0,79482.0,0.18896328]
[1731235791671,1.5,79491.0,79480.0,0.0759]
[1731235794145,0.000841,79490.0,79480.0,0.0759]
[1731235794768,0.18980428,79490.0,79480.0,0.0759]
[1731235795621,0.000841,79490.0,79480.0,0.0759]
[1731235797752,0.000841,79490.0,79481.0,0.0025161]
[1731235797942,0.000841,79490.0,79481.0,0.005]
[1731235798264,0.18896328,79489.0,79481.0,0.005]
[1731235798429,0.000841,79490.0,79481.0,0.005]
[1731235799260,0.18896328,79489.0,79480.0,0.0759]
[1731235799459,0.000841,79490.0,79480.0,0.0759]
[1731235800774,0.000841,79490.0,79474.0,0.0596]
[1731235800987,0.000841,79490.0,79482.0,0.1]
[1731235801186,0.18896328,79489.0,79482.0,0.1]
[1731235801726,0.000841,79490.0,79482.0,0.09]
[1731235802149,0.000841,79490.0,79474.0,0.0596]
[1731235802354,0.000841,79490.0,79477.0,0.18896328]
[1731235802569,0.000841,79490.0,79474.0,0.0596]
[1731235803153,0.18896328,79489.0,79474.0,0.0596]
[1731235803677,0.31490549,79489.0,79472.0,0.0762]
[1731235803826,0.10196357,79484.0,79472.0,0.0762]
[1731235804024,0.10196357,79484.0,79469.0,0.001422]
[1731235804025,0.12594221,79483.0,79469.0,0.001422]
[1731235804409,0.12594221,79483.0,79471.0,0.1]
[1731235804814,1.5,79482.0,79471.0,0.1]
[1731235805054,1.62594221,79482.0,79471.0,0.1]
[1731235805531,0.10196357,79473.0,79469.0,0.001422]
[1731235805709,0.12594221,79472.0,79469.0,0.001422]
[1731235807954,0.18896328,79471.0,79469.0,0.001422]
[1731235808197,0.12594221,79470.0,79469.0,0.001422]
[1731235809250,1.62594221,79470.0,79469.0,0.001422]
[1731235815515,0.12594221,79470.0,79469.0,0.001422]
[1731235815951,1.62594221,79470.0,79469.0,0.001422]
[1731235819859,0.10196357,79487.0,79469.0,0.001422]
[1731235820075,0.18896328,79480.0,79469.0,0.001422]
[1731235820276,1.62594221,79479.0,79469.0,0.001422]
[1731235821122,0.10196357,79475.0,79469.0,0.001422]
[1731235821318,0.22790578,79475.0,79469.0,0.001422]
[1731235822400,1.5,79474.0,79469.0,0.001422]
[1731235822749,0.12594221,79473.0,79469.0,0.001422]
[1731235823374,1.5,79472.0,79469.0,0.001422]
[1731235823576,0.12594221,79471.0,79469.0,0.001422]
[1731235824407,1.5,79472.0,79469.0,0.001422]
[1731235824933,0.12594221,79471.0,79469.0,0.001422]
[1731235826999,0.12594221,79471.0,79457.0,0.051422]
[1731235827943,0.31490549,79471.0,79455.0,0.005]
[1731235828584,1.5,79470.0,79455.0,0.005]
[1731235828763,0.12594221,79469.0,79455.0,0.005]
[1731235829169,0.12594221,79469.0,79454.0,0.00013214]
[1731235829361,1.5,79468.0,79454.0,0.00013214]
[1731235829568,0.12594221,79467.0,79454.0,0.00013214]
[1731235830005,0.10196357,79472.0,79455.0,0.18896328]
[1731235830235,0.31490549,79471.0,79456.0,0.1]
[1731235830563,0.005,79473.0,79457.0,0.18896328]
[1731235830821,0.076841,79490.0,79458.0,0.10251688]
[1731235830822,0.18896328,79472.0,79458.0,0.10251688]
[1731235831170,0.005,79478.0,79477.0,0.1]
[1731235831389,0.13094221,79478.0,79477.0,0.1]
[1731235831992,0.13094221,79478.0,79471.0,0.083]
[1731235831993,0.005,79474.0,79471.0,0.083]
[1731235832392,1.5,79473.0,79471.0,0.083]
[1731235833513,1.505,79473.0,79471.0,0.083]
[1731235833869,1.5,79473.0,79471.0,0.083]
[1731235834890,1.49,79473.0,79471.0,0.083]
[1731235835106,0.000841,79482.0,79471.0,0.083]
[1731235835306,0.000841,79482.0,79472.0,0.00251641]
[1731235835703,0.18771506,79481.0,79471.0,0.083]
[1731235836598,0.18771506,79481.0,79471.0,0.007]
[1731235836999,0.000841,79482.0,79471.0,0.007]
[1731235838455,0.076841,79490.0,79478.0,0.005]
[1731235838643,0.076841,79490.0,79488.0,0.01]
[1731235838644,0.07017447,79490.0,79488.0,0.01]
[1731235838868,0.07017447,79490.0,79483.0,0.1482]
[1731235838869,0.0444041,79490.0,79489.0,0.01251571]
[1731235839065,0.03953201,79490.0,79489.0,0.06071571]
[1731235839264,0.03,79495.0,79494.0,0.005]
[1731235839602,0.03,79495.0,79490.0,0.0482]
[1731235841266,0.03,79495.0,79492.0,0.1]
[1731235842393,0.03,79495.0,79490.0,0.0482]
[1731235842738,0.03,79495.0,79488.0,0.083]
[1731235843522,0.03,79495.0,79482.0,0.105]
[1731235843728,1.5,79494.0,79483.0,0.18896328]
[1731235844083,1.5,79494.0,79484.0,0.1]
[1731235844635,1.5,79494.0,79470.0,0.002]
[1731235844636,0.18896328,79491.0,79472.0,0.0814]
[1731235844850,0.10196357,79484.0,79474.0,0.18896328]
[1731235845248,1.5,79483.0,79474.0,0.21096328]
[1731235845415,0.13094221,79490.0,79474.0,0.21096328]
[1731235845619,0.18896328,79489.0,79474.0,0.21096328]
[1731235845816,1.5,79488.0,79474.0,0.21096328]
[1731235846012,1.5,79488.0,79475.0,0.1]
[1731235846444,0.10196357,79480.0,79474.0,0.022]
[1731235846644,0.12594221,79479.0,79474.0,0.022]
[1731235847976,0.005,79483.0,79474.0,0.022]
[1731235847977,0.005,79485.0,79474.0,0.022]
[1731235848184,0.005,79483.0,79477.0,0.1]
[1731235849578,0.005,79483.0,79474.0,0.022]
[1731235851585,0.19396328,79479.0,79474.0,0.022]
[1731235851787,0.078,79477.0,79474.0,0.022]
[1731235851988,0.12594221,79476.0,79474.0,0.022]
[1731235852435,1.5,79475.0,79474.0,0.022]
[1731235852586,1.62594221,79475.0,79474.0,0.022]
[1731235853706,1.62594221,79475.0,79474.0,0.02368]
[1731235854567,0.12594221,79475.0,79474.0,0.00168]
[1731235855749,1.62594221,79475.0,79474.0,0.00168]
[1731235857754,0.12594221,79475.0,79474.0,0.00168]
[1731235857964,0.00084,79484.0,79474.0,0.04958]
[1731235858177,0.18896328,79483.0,79474.0,0.04958]
[1731235858549,0.00084,79484.0,79474.0,0.04958]
[1731235861045,0.00084,79484.0,79475.0,0.00251625]
[1731235861353,0.18896328,79491.0,79475.0,0.00251625]
[1731235861555,0.18896328,79491.0,79474.0,0.04958]
[1731235861896,0.03,79495.0,79482.0,0.1]
[1731235862097,0.02833034,79495.0,79475.0,0.00251614]
[1731235862354,1.5,79494.0,79482.0,0.0819]
[1731235862491,1.5,79494.0,79483.0,0.00251592]
[1731235862673,1.5,79494.0,79483.0,0.00451592]
[1731235862876,0.02833034,79495.0,79483.0,0.002]
[1731235863083,0.02833034,79495.0,79484.0,0.00251588]
[1731235863525,0.02833034,79495.0,79482.0,0.0819]
[1731235866455,1.5,79494.0,79482.0,0.08358]
[1731235866846,1.5,79494.0,79482.0,0.08258]
[1731235867054,0.02833034,79495.0,79482.0,0.08258]
[1731235867251,0.02833034,79495.0,79484.0,0.1]
[1731235867436,1.52833034,79495.0,79484.0,0.1]
[1731235868228,0.02833034,79495.0,79484.0,0.22594221]
[1731235868425,0.02833034,79495.0,79485.0,0.17365794]
[1731235868670,0.02833034,79495.0,79486.0,0.105]
[1731235868871,0.02833034,79495.0,79487.0,0.12594221]
[1731235869187,0.02833034,79495.0,79488.0,0.1]
[1731235870438,0.02833034,79495.0,79485.0,0.0452]
[1731235872009,0.02833034,79495.0,79486.0,0.18896328]
[1731235872177,0.02833034,79495.0,79487.0,0.1]
[1731235873437,0.02833034,79495.0,79485.0,0.0452]
[1731235873702,0.02833034,79495.0,79485.0,0.1452]
[1731235875898,0.02833034,79495.0,79482.0,0.08258]
[1731235876100,0.02833034,79495.0,79484.0,0.1]
[1731235877392,0.02833034,79495.0,79486.0,0.1]
[1731235877608,0.02833034,79495.0,79487.0,0.37742]
[1731235878110,0.02833034,79495.0,79488.0,0.1]
[1731235878306,0.02833034,79495.0,79492.0,0.1]
[1731235878869,0.02833034,79495.0,79493.0,0.0477157]
[1731235879055,0.02833034,79495.0,79494.0,0.23094221]
[1731235879251,0.02833034,79495.0,79494.0,0.60833221]
[1731235879451,0.02917034,79495.0,79494.0,0.60833221]
[1731235879659,0.02917034,79495.0,79494.0,0.60333221]
[1731235879853,0.02917034,79495.0,79494.0,0.47739]
[1731235881270,0.15511255,79495.0,79494.0,0.47739]
[1731235881397,0.26207987,79495.0,79494.0,0.37739]
[1731235881801,1.76207987,79495.0,79494.0,0.37739]
[1731235886612,1.76207987,79495.0,79494.0,0.47739]
[1731235888471,0.26207987,79495.0,79494.0,0.47739]
[1731235888885,1.76207987,79495.0,79494.0,0.47739]
[1731235892036,0.26207987,79495.0,79494.0,0.47739]
[1731235892167,0.25207987,79495.0,79494.0,0.47739]
[1731235892373,1.75207987,79495.0,79494.0,0.47739]
[1731235895143,1.64511255,79495.0,79494.0,0.47739]
[1731235895349,0.01917034,79495.0,79494.0,0.54739]
[1731235896121,0.02417034,79495.0,79494.0,0.54739]
[1731235899605,1.52417034,79495.0,79494.0,0.54739]
[1731235904199,1.65011255,79495.0,79494.0,0.54739]
[1731235904598,0.15011255,79495.0,79494.0,0.54739]
[1731235905025,1.65011255,79495.0,79494.0,0.54739]
[1731235905956,1.65011255,79495.0,79494.0,0.44739]
[1731235907017,1.52417034,79495.0,79494.0,0.44739]
[1731235908176,0.01917034,79495.0,79494.0,0.44739]
[1731235908382,0.02417034,79495.0,79494.0,0.44739]
[1731235911544,0.02417034,79495.0,79494.0,0.54739]
[1731235912257,1.52417034,79495.0,79494.0,0.54739]
[1731235916459,1.65011255,79495.0,79494.0,0.47739]
[1731235917253,1.73051255,79495.0,79494.0,0.37739]
[1731235918102,1.73551255,79495.0,79494.0,0.37739]
[1731235918436,1.73551255,79495.0,79494.0,0.37668376]
[1731235919218,1.73551255,79495.0,79494.0,0.37836376]
[1731235920231,1.65511255,79495.0,79494.0,0.37836376]
[1731235920440,0.02417034,79495.0,79494.0,0.47836376]
[1731235922415,0.15011255,79495.0,79494.0,0.47836376]
[1731235924819,1.65011255,79495.0,79494.0,0.47836376]
[1731235925219,1.65011255,79495.0,79494.0,0.51988112]
[1731235927739,1.61861342,79495.0,79494.0,0.51988112]
[1731235929153,0.11861342,79495.0,79494.0,0.51988112]
[1731235929552,1.61861342,79495.0,79494.0,0.51988112]
[1731235930836,1.61861342,79495.0,79494.0,0.47836376]
[1731235931734,1.61945342,79495.0,79494.0,0.47836376]
[1731235939470,1.72142074,79495.0,79494.0,0.47836376]
[1731235940260,1.72142074,79495.0,79494.0,0.37836376]
[1731235940479,1.72142074,79495.0,79494.0,0.47836376]
[1731235940816,1.82838806,79495.0,79494.0,0.45587857]
[1731235941031,1.72642074,79495.0,79494.0,0.45587857]
[1731235941633,1.73642074,79495.0,79494.0,0.35587857]
[1731235942624,1.83642074,79495.0,79494.0,0.35587857]
[1731235943033,1.95752074,79495.0,79494.0,0.35587857]
[1731235943366,2.05948806,79495.0,79494.0,0.30321522]
[1731235943518,0.015,79488.0,79487.0,0.0002253]
[1731235943717,0.34487685,79488.0,79487.0,0.0002253]
[1731235943918,0.34487685,79488.0,79474.0,0.10168]
[1731235943919,0.005,79485.0,79474.0,0.10168]
[1731235944158,1.62594221,79484.0,79474.0,0.10168]
[1731235944408,0.005,79483.0,79474.0,0.10168]
[1731235944610,0.13094221,79483.0,79474.0,0.10168]
[1731235945586,0.13094221,79483.0,79474.0,0.00168]
[1731235946547,0.005,79476.0,79474.0,0.00168]
[1731235946765,0.22790953,79475.0,79474.0,0.00168]